fUSD/lending_fUSD_20240516
["ID","MTS","AMOUNT","RATE_DAILY","PERIOD"]
[327153216,1715860246156,-2304.13470654,0.00010974,2]
[327153217,1715860248907,52273.51789901,8.219e-05,2]
[327153220,1715860282865,150.0,8.219e-05,2]
[327153221,1715860282887,150.0,8.219e-05,2]
[327153222,1715860282908,150.0,8.219e-05,2]
[327153223,1715860282930,150.0,8.219e-05,2]
[327153224,1715860282951,150.0,8.219e-05,2]
[327153225,1715860282972,150.0,8.219e-05,2]
[327153226,1715860282993,150.0,8.219e-05,2]
[327153227,1715860283014,150.0,8.219e-05,2]
[327153228,1715860283036,150.0,8.219e-05,2]
[327153229,1715860283065,164560.63200728,8.219e-05,2]
[327153230,1715860286075,150.0,8.219e-05,2]
[327153231,1715860286097,150.0,8.219e-05,2]
[327153232,1715860286118,45.88545334,8.219e-05,2]
[327153233,1715860335284,104.11454666,7.993e-05,2]
[327153234,1715860335307,54.32545334,7.993e-05,2]
[327153235,1715860410909,114.17454666,8.219e-05,2]
[327153236,1715860410931,58.22545334,8.219e-05,2]
[327153241,1715860756908,167.08,8.219e-05,2]
[327153243,1715860873079,1000.0,0.0002308,120]
[327153244,1715860878613,1000.0,0.0002308,120]
[327153245,1715860879052,1000.0,0.0002308,120]
[327153246,1715860879480,1000.0,0.0002308,120]
[327153247,1715860879903,1000.0,0.0002308,120]
[327153248,1715860880303,1000.0,0.0002308,120]
[327153249,1715860880734,1000.0,0.0002308,120]
[327153250,1715860901697,659.22313365,0.0002308,120]
[327153251,1715860904229,56.19454666,8.219e-05,2]
[327153252,1715860904249,116.20545334,8.219e-05,2]
[327153270,1715861246535,33.79454666,8.219e-05,2]
[327153271,1715861246566,133.28545334,8.219e-05,2]
[327153272,1715861247385,-225.89398975,9.787e-05,2]
[327153273,1715861247406,-155.0,9.788e-05,2]
[327153274,1715861247430,-376.69655341,9.79e-05,2]
[327153275,1715861247452,-2917.09254475,9.79e-05,2]
[327153276,1715861247476,-325.31691209,9.791e-05,2]
[327153277,1715861248755,-390.54308791,9.791e-05,2]
[327153278,1715861248777,-150.0,9.793e-05,2]
[327153279,1715861248799,-480.0,9.796e-05,2]
[327153280,1715861248824,-165.24,9.813e-05,2]
[327153281,1715861248848,-722.01,9.833e-05,2]
[327153282,1715861248870,-2092.20691209,9.837e-05,2]
[327153283,1715861249137,-454.28308791,9.837e-05,2]
[327153284,1715861249163,-250.0,9.857e-05,2]
[327153285,1715861249188,-182.06,9.867e-05,2]
[327153286,1715861249211,-499.99,9.867e-05,2]
[327153287,1715861249234,-520.0,9.892e-05,2]
[327153290,1715861288973,-298.78407833,0.0001,2]
[327153291,1715861288995,-203.0,0.0001012,2]
[327153292,1715861289017,-150.0,0.00010274,2]
[327153293,1715861289038,-869.11,0.000103,2]
[327153294,1715861289063,-600.0,0.000103,3]
[327153295,1715861289086,-1200.0,0.000104,3]
[327153296,1715861289110,-679.10592167,0.000105,3]
[327153298,1715861369529,172.4,8.219e-05,2]
[327153308,1715861432140,-204.7855615,0.00010008,2]
[327153309,1715861432149,-9481.79,0.00010009,2]
[327153310,1715861432159,-155.0,0.00010499,2]
[327153311,1715861432168,-1120.89407833,0.000105,3]
[327153312,1715861432177,-150.0,0.000105,2]
[327153313,1715861432186,-298.78407833,0.000105,2]
[327153314,1715861432196,-203.0,0.0001058,2]
[327153315,1715861432205,-2400.0,0.000106,3]
[327153316,1715861432215,-3000.0,0.000107,3]
[327153317,1715861432224,-150.0,0.000107,2]
[327153318,1715861432233,-150.0,0.000107,2]
[327153319,1715861432242,-181.63829139,0.0001076,2]
[327153320,1715861432251,-600.0,0.000108,3]
[327153321,1715861432260,-150.0,0.00010824,2]
[327153322,1715861432271,-150.0,0.00010826,2]
[327153323,1715861432283,-150.0,0.00010838,2]
[327153324,1715861432294,-150.0,0.00010847,2]
[327153325,1715861432304,-150.0,0.00010852,2]
[327153326,1715861432313,-715.63617424,0.0001086,2]
[327153327,1715861432327,-3597.53884798,0.0001086,2]
[327153328,1715861432340,-668.1020005,0.0001086,2]
[327153350,1715861432684,-24368.79136036,0.0001086,2]
[327153369,1715861432865,-6667.2078,0.0001086,2]
[327153439,1715861438127,-1569.25989765,0.0001086,2]
[327153443,1715861438185,-665.06,0.0001086,2]
[327153444,1715861438427,-102441.81051927,0.0001086,2]
[327153445,1715861438436,-584.5001,0.0001086,2]
[327153446,1715861438446,-500.1,0.0001086,2]
[327153447,1715861438455,-150.0,0.00010864,2]
[327153448,1715861438467,-150.0,0.00010872,2]
[327153449,1715861438476,-150.0,0.00010884,2]
[327153450,1715861438487,-150.0,0.00010893,2]
[327153451,1715861438498,-150.0,0.00010898,2]
[327153452,1715861438508,-150.0,0.00010899,2]
[327153453,1715861438519,-600.0,0.000109,3]
[327153454,1715861438529,-150.0,0.00010908,2]
[327153455,1715861438542,-150.0,0.00010909,2]
[327153456,1715861438551,-150.0,0.00010926,2]
[327153457,1715861438560,-150.0,0.00010933,2]
[327153458,1715861438570,-150.0,0.00010935,2]
[327153460,1715861438579,-150.0,0.00010941,2]
[327153461,1715861438589,-150.0,0.00010945,2]
[327153463,1715861438599,-150.0,0.00010948,2]
[327153465,1715861438608,-150.0,0.00010949,2]
[327153467,1715861438618,-150.0,0.00010951,2]
[327153469,1715861438628,-150.0,0.00010957,2]
[327153471,1715861438638,-1000.0,0.00010964,2]
[327153474,1715861438648,-172.22141549,0.00010968,2]
[327153476,1715861438658,-16774.08798791,0.00010968,2]
[327153478,1715861438667,-500.0,0.00010974,2]
[327153480,1715861438677,-500.0,0.00010974,2]
[327153482,1715861438686,-500.0,0.00010974,2]
[327153484,1715861438695,-603.72137145,0.00010974,2]
[327153486,1715861438704,-500.0,0.00010974,2]
[327153488,1715861438714,-500.0,0.00010974,2]
[327153489,1715861438724,-500.0,0.00010974,2]
[327153490,1715861438737,-500.0,0.00010974,2]
[327153491,1715861438747,-500.0,0.00010974,2]
[327153492,1715861438756,-3000.0,0.00010974,2]
[327153493,1715861438766,-500.0,0.00010974,2]
[327153494,1715861438777,-500.0,0.00010974,2]
[327153495,1715861438790,-500.0,0.00010974,2]
[327153496,1715861438800,-150.0,0.00010975,2]
[327153497,1715861438811,-150.0,0.00010976,2]
[327153498,1715861438821,-428.95845338,0.0001098,2]
[327153499,1715861438830,-200.0,0.00010985,2]
[327153500,1715861438840,-150.0,0.00010985,2]
[327153501,1715861438849,-200.0,0.0001099,2]
[327153502,1715861438859,-200.0,0.00010991,2]
[327153503,1715861438868,-1000.0,0.00010991,2]
[327153504,1715861438878,-500.0,0.00010991,2]
[327153505,1715861438887,-150.0,0.00010997,2]
[327153506,1715861438897,-526.33997987,0.00010999,2]
[327153507,1715861438908,-500.0,0.00010999,2]
[327153508,1715861438917,-286.30694261,0.00010999,2]
[327153509,1715861438926,-500.0,0.00010999,2]
[327153510,1715861438936,-500.0,0.00010999,2]
[327153511,1715861438945,-348.98860191,0.00010999,2]
[327153512,1715861438955,-500.0,0.00010999,2]
[327153513,1715861438965,-500.0,0.00010999,2]
[327153514,1715861438974,-301.11986266,0.00010999,2]
[327153515,1715861438984,-499.77766572,0.00010999,2]
[327153516,1715861438993,-487.41423658,0.00010999,2]
[327153517,1715861439013,-500.0,0.00010999,2]
[327153518,1715861439026,-500.0,0.00010999,2]
[327153519,1715861439039,-500.0,0.00010999,2]
[327153520,1715861439052,-500.0,0.00010999,2]
[327153521,1715861439065,-500.0,0.00010999,2]
[327153522,1715861439078,-500.0,0.00010999,2]
[327153523,1715861439088,-500.0,0.00010999,2]
[327153524,1715861439099,-500.0,0.00010999,2]
[327153525,1715861439111,-500.0,0.00010999,2]
[327153526,1715861439122,-500.0,0.00010999,2]
[327153527,1715861439135,-500.0,0.00010999,2]
[327153528,1715861439147,-500.0,0.00010999,2]
[327153529,1715861439159,-500.0,0.00010999,2]
[327153530,1715861439171,-500.0,0.00010999,2]
[327153531,1715861439182,-500.0,0.00010999,2]
[327153532,1715861439194,-500.0,0.00010999,2]
[327153533,1715861439206,-261.05321944,0.00010999,2]
[327153534,1715861439218,-500.0,0.00010999,2]
[327153535,1715861439230,-500.0,0.00010999,2]
[327153536,1715861439242,-500.0,0.00010999,2]
[327153537,1715861439254,-500.0,0.00010999,2]
[327153538,1715861439266,-150.0,0.0001101,2]
[327153539,1715861439278,-480.0,0.00011021,2]
[327153540,1715861439289,-500.0,0.00011023,2]
[327153541,1715861439306,-500.0,0.00011023,2]
[327153542,1715861439318,-500.0,0.00011023,2]
[327153543,1715861439330,-500.0,0.00011023,2]
[327153544,1715861439342,-500.0,0.00011023,2]
[327153545,1715861439354,-500.0,0.00011023,2]
[327153546,1715861439368,-500.0,0.00011023,2]
[327153547,1715861439380,-500.0,0.00011023,2]
[327153548,1715861439391,-500.0,0.00011023,2]
[327153549,1715861439403,-153.535,0.00011024,2]
[327153550,1715861439414,-155.301,0.00011024,2]
[327153551,1715861439424,-2351.0,0.00011024,2]
[327153552,1715861439438,-1670.757,0.00011024,2]
[327153553,1715861439453,-3158.0,0.00011024,2]
[327153554,1715861439465,-445.375,0.00011024,2]
[327153555,1715861439475,-216.0,0.00011024,2]
[327153556,1715861439488,-1146.733,0.00011024,2]
[327153557,1715861439500,-150.0,0.00011036,2]
[327153558,1715861439511,-150.0,0.00011044,2]
[327153559,1715861439523,-203.0,0.0001105,2]
[327153560,1715861439534,-150.0,0.00011052,2]
[327153561,1715861439550,-154.64,0.00011054,2]
[327153562,1715861439562,-53.55697002,0.00011058,2]
[327153563,1715861439579,-101.08302998,0.00011058,2]
[327153564,1715861439592,-154.64,0.00011058,2]
[327153565,1715861439604,-154.64,0.00011058,2]
[327153566,1715861439616,-154.64,0.00011058,2]
[327153567,1715861439628,-252.88745525,0.00011063,2]
[327153568,1715861439640,-20000.0,0.00011064,2]
[327153569,1715861439651,-500.0,0.00011064,2]
[327153570,1715861439663,-500.0,0.00011064,2]
[327153571,1715861439674,-500.0,0.00011064,2]
[327153572,1715861439686,-501.23751725,0.00011064,2]
[327153573,1715861439697,-500.0,0.00011064,2]
[327153574,1715861439708,-500.0,0.00011064,2]
[327153575,1715861439722,-385.37,0.00011064,2]
[327153576,1715861439736,-500.0,0.00011064,2]
[327153577,1715861439747,-500.0,0.00011064,2]
[327153578,1715861439759,-504.63428149,0.00011064,2]
[327153579,1715861439773,-618.42,0.00011064,2]
[327153580,1715861439784,-500.0,0.00011064,2]
[327153581,1715861439798,-500.0,0.00011064,2]
[327153582,1715861439809,-528.97,0.00011064,2]
[327153583,1715861439822,-504.4899487,0.00011064,2]
[327153584,1715861439834,-507.57090531,0.00011064,2]
[327153585,1715861439846,-326.69019838,0.00011064,2]
[327153586,1715861439858,-500.0,0.00011064,2]
[327153587,1715861439874,-500.0,0.00011064,2]
[327153588,1715861439887,-500.0,0.00011064,2]
[327153589,1715861439900,-189.46,0.00011064,2]
[327153590,1715861439912,-566.43,0.00011064,2]
[327153591,1715861439923,-500.0,0.00011064,2]
[327153592,1715861439934,-500.0,0.00011064,2]
[327153593,1715861439945,-427.85,0.00011064,2]
[327153594,1715861439956,-500.0,0.00011064,2]
[327153595,1715861439967,-544.29,0.00011064,2]
[327153596,1715861439978,-1650.87,0.00011064,2]
[327153597,1715861439990,-500.0,0.00011064,2]
[327153598,1715861440012,-500.0,0.00011064,2]
[327153599,1715861440025,-500.0,0.00011064,2]
[327153600,1715861440037,-500.0,0.00011064,2]
[327153601,1715861440049,-500.0,0.00011064,2]
[327153602,1715861440061,-500.0,0.00011064,2]
[327153603,1715861440073,-500.0,0.00011064,2]
[327153604,1715861440085,-500.0,0.00011064,2]
[327153605,1715861440096,-500.0,0.00011064,2]
[327153606,1715861440109,-1023.0,0.00011064,2]
[327153607,1715861440121,-500.0,0.00011064,2]
[327153608,1715861440133,-500.0,0.00011064,2]
[327153609,1715861440144,-500.0,0.00011064,2]
[327153610,1715861440155,-500.0,0.00011064,2]
[327153611,1715861440167,-500.0,0.00011064,2]
[327153612,1715861440178,-500.0,0.00011064,2]
[327153613,1715861440189,-500.0,0.00011064,2]
[327153614,1715861440200,-769.92,0.00011064,2]
[327153615,1715861440212,-500.0,0.00011064,2]
[327153616,1715861440222,-500.0,0.00011064,2]
[327153617,1715861440233,-437.09,0.00011064,2]
[327153618,1715861440244,-723.68,0.00011064,2]
[327153619,1715861440255,-500.0,0.00011064,2]
[327153620,1715861440265,-500.0,0.00011064,2]
[327153621,1715861440276,-500.0,0.00011064,2]
[327153622,1715861440289,-500.0,0.00011064,2]
[327153623,1715861440299,-500.0,0.00011064,2]
[327153624,1715861440310,-500.0,0.00011064,2]
[327153625,1715861440324,-500.0,0.00011064,2]
[327153626,1715861440335,-500.0,0.00011064,2]
[327153627,1715861440346,-500.0,0.00011064,2]
[327153628,1715861440357,-500.0,0.00011064,2]
[327153629,1715861440368,-500.0,0.00011064,2]
[327153630,1715861440379,-500.0,0.00011064,2]
[327153631,1715861440390,-1138.0,0.00011064,2]
[327153632,1715861440401,-501.99900894,0.00011064,2]
[327153633,1715861440412,-500.0,0.00011065,2]
[327153634,1715861440423,-392.35663692,0.00011065,2]
[327153635,1715861440434,-500.0,0.00011065,2]
[327153636,1715861440445,-504.27768084,0.00011065,2]
[327153637,1715861440457,-494.62749046,0.00011065,2]
[327153638,1715861440468,-200.60510361,0.00011065,2]
[327153639,1715861440478,-507.09375836,0.00011065,2]
[327153640,1715861440490,-380.80431245,0.00011065,2]
[327153641,1715861440501,-500.0,0.00011065,2]
[327153642,1715861440512,-500.0,0.00011065,2]
[327153643,1715861440523,-324.13226126,0.00011065,2]
[327153644,1715861440534,-500.0,0.00011065,2]
[327153645,1715861440547,-500.0,0.00011065,2]
[327153646,1715861440558,-500.0,0.00011065,2]
[327153647,1715861440569,-500.0,0.00011065,2]
[327153648,1715861440580,-2000.0,0.00011065,2]
[327153649,1715861440591,-490.31,0.00011065,2]
[327153650,1715861440603,-500.0,0.00011065,2]
[327153651,1715861440615,-262.80967152,0.00011066,2]
[327153652,1715861440626,-12950.62040373,0.00011066,2]
[327153653,1715861440637,-1539.30497695,0.00011066,2]
[327153654,1715861440649,-213.83348711,0.00011066,2]
[327153655,1715861440660,-500.0,0.00011066,2]
[327153656,1715861440672,-500.0,0.00011066,2]
[327153657,1715861440682,-20000.0,0.00011066,2]
[327153658,1715861440694,-500.0,0.00011066,2]
[327153659,1715861440705,-500.0,0.00011066,2]
[327153660,1715861440715,-500.0,0.00011066,2]
[327153661,1715861440728,-500.0,0.00011066,2]
[327153662,1715861440740,-500.0,0.00011066,2]
[327153663,1715861440750,-232.0577399,0.00011066,2]
[327153664,1715861440761,-500.0,0.00011066,2]
[327153665,1715861440774,-500.0,0.00011066,2]
[327153666,1715861440785,-500.0,0.00011066,2]
[327153667,1715861440798,-500.0,0.00011066,2]
[327153668,1715861440810,-513.91,0.00011066,2]
[327153669,1715861440821,-445.19,0.00011066,2]
[327153670,1715861440831,-500.0,0.00011066,2]
[327153671,1715861440843,-500.0,0.00011066,2]
[327153672,1715861440853,-500.0,0.00011066,2]
[327153673,1715861440864,-500.0,0.00011066,2]
[327153674,1715861440875,-500.0,0.00011066,2]
[327153675,1715861440885,-500.0,0.00011066,2]
[327153676,1715861440896,-500.0,0.00011066,2]
[327153677,1715861440908,-882.74432352,0.00011066,2]
[327153678,1715861440919,-237.89,0.00011066,2]
[327153679,1715861440929,-506.36112904,0.00011066,2]
[327153680,1715861440939,-528.97,0.00011066,2]
[327153681,1715861440950,-500.0,0.00011066,2]
[327153682,1715861440962,-500.0,0.00011066,2]
[327153683,1715861440972,-566.43,0.00011066,2]
[327153684,1715861440985,-168.52588462,0.00011066,2]
[327153685,1715861440996,-539.95659499,0.00011066,2]
[327153686,1715861441008,-500.0,0.00011066,2]
[327153687,1715861441019,-544.29,0.00011066,2]
[327153688,1715861441030,-1650.87,0.00011066,2]
[327153689,1715861441044,-500.0,0.00011066,2]
[327153690,1715861441055,-155.52154493,0.00011066,2]
[327153691,1715861441065,-500.0,0.00011066,2]
[327153692,1715861441076,-300.0,0.00011066,2]
[327153693,1715861441087,-500.0,0.00011066,2]
[327153694,1715861441098,-225.72,0.00011066,2]
[327153695,1715861441110,-500.0,0.00011066,2]
[327153696,1715861441121,-500.0,0.00011066,2]
[327153697,1715861441132,-1023.0,0.00011066,2]
[327153698,1715861441143,-500.0,0.00011066,2]
[327153699,1715861441153,-500.0,0.00011066,2]
[327153700,1715861441164,-500.0,0.00011066,2]
[327153701,1715861441175,-500.0,0.00011066,2]
[327153702,1715861441186,-500.0,0.00011066,2]
[327153703,1715861441197,-377.72952639,0.00011066,2]
[327153704,1715861441208,-167.81288797,0.00011066,2]
[327153705,1715861441220,-500.0,0.00011066,2]
[327153706,1715861441231,-210.66059679,0.00011066,2]
[327153707,1715861441243,-278.72,0.00011066,2]
[327153708,1715861441255,-500.0,0.00011066,2]
[327153709,1715861441266,-500.0,0.00011066,2]
[327153710,1715861441279,-769.92,0.00011066,2]
[327153712,1715861441290,-500.0,0.00011066,2]
[327153714,1715861441301,-162.34639192,0.00011066,2]
[327153717,1715861441311,-723.68,0.00011066,2]
[327153719,1715861441322,-500.0,0.00011066,2]
[327153721,1715861441332,-500.0,0.00011066,2]
[327153722,1715861441342,-500.0,0.00011066,2]
[327153723,1715861441352,-500.0,0.00011066,2]
[327153724,1715861441363,-500.0,0.00011066,2]
[327153725,1715861441374,-500.0,0.00011066,2]
[327153726,1715861441386,-158.26245048,0.00011066,2]
[327153727,1715861441397,-500.0,0.00011066,2]
[327153728,1715861441407,-205.08108659,0.00011066,2]
[327153729,1715861441418,-155.13360489,0.00011066,2]
[327153730,1715861441429,-500.0,0.00011066,2]
[327153731,1715861441441,-500.0,0.00011066,2]
[327153732,1715861441453,-207.65391609,0.00011066,2]
[327153733,1715861441465,-500.0,0.00011066,2]
[327153734,1715861441476,-500.0,0.00011066,2]
[327153735,1715861441487,-500.0,0.00011066,2]
[327153736,1715861441499,-265.94745897,0.00011066,2]
[327153737,1715861441511,-500.0,0.00011066,2]
[327153738,1715861441521,-155.39198269,0.00011066,2]
[327153739,1715861441532,-6408.49246702,0.00011066,2]
[327153740,1715861441545,-199.877,0.00011066,2]
[327153741,1715861441555,-155.0,0.00011066,2]
[327153742,1715861441566,-966.86245191,0.00011066,2]
[327153754,1715861442342,-171.13754809,0.00011066,2]
[327153755,1715861442351,-91.65442859,0.00011066,2]
[327153756,1715861442363,-176.76811516,0.00011066,2]
[327153757,1715861442373,-500.0,0.00011066,2]
[327153758,1715861442382,-500.0,0.00011067,2]
[327153759,1715861442392,-2000.0,0.00011067,2]
[327153760,1715861442401,-200.0,0.00011067,2]
[327153761,1715861442411,-909.09064571,0.00011067,2]
[327153762,1715861442420,-3650.1098018,0.00011067,2]
[327153783,1715861443247,-155.0,0.00011066,2]
[327153784,1715861443257,-303.6748366,0.00011067,2]
[327153789,1715861443305,-376.69655341,0.00011067,2]
[327153791,1715861443317,-1798.07131388,0.00011067,2]
[327153799,1715861443551,-3282.80859403,0.00011066,2]
[327153800,1715861443560,-2898.20060979,0.00011067,2]
[327153922,1715861446100,-204.7855615,0.00011066,2]
[327153923,1715861446110,-155.0,0.00011066,2]
[327153924,1715861446119,-72.18368862,0.00011067,2]
[327153925,1715861446131,-442.23543314,0.00011067,2]
[327153926,1715861446156,-982.45050727,0.00011067,2]
[327153927,1715861446219,-463.26284,0.00011067,2]
[327153928,1715861446282,-724.23080063,0.00011067,2]
[327153929,1715861446526,-1603.20601043,0.00011067,2]
[327153930,1715861446538,-1210.60516628,0.00011067,2]
[327153931,1715861446551,-999.02301719,0.00011067,2]
[327153932,1715861446563,-306.8462,0.00011067,2]
[327153933,1715861446590,-462.1772013,0.00011067,2]
[327153934,1715861446602,-3707.02601966,0.00011067,2]
[327153935,1715861446612,-10843.66772342,0.00011067,2]
[327154092,1715861448236,350.93755635,8.219e-05,2]
[327154228,1715861650122,1570.32935574,9.846e-05,2]
[327154229,1715861650145,273.33220026,9.846e-05,2]
[327154230,1715861677487,155.0,9.892e-05,2]
[327154231,1715861680334,3571.66779974,9.892e-05,2]
[327154232,1715861680356,1023.52620139,9.892e-05,2]
[327154233,1715861697722,2976.47379861,9.892e-05,2]
[327154234,1715861697745,4000.0,9.892e-05,2]
[327154235,1715861697770,537.2775495,9.892e-05,2]
[327154236,1715861697906,155.0,9.892e-05,2]
[327154237,1715861698948,155.0,9.892e-05,2]
[327154238,1715861703818,783.37515963,9.892e-05,2]
[327154239,1715861708131,155.0,9.892e-05,2]
[327154240,1715861708563,326.61045955,9.892e-05,2]
[327154241,1715861708920,1887.73683132,9.892e-05,2]
[327154242,1715861708941,1029.35571343,9.892e-05,2]
[327154243,1715861710424,409.57332156,9.892e-05,2]
[327154244,1715861714765,883.0724361,9.892e-05,2]
[327154245,1715861716050,207.32803127,9.892e-05,2]
[327154246,1715861721892,1470.67049764,9.892e-05,2]
[327154247,1715861721914,3801.50592924,9.892e-05,2]
[327154248,1715861723684,156.06241997,9.892e-05,2]
[327154249,1715861732471,42.43165079,9.844e-05,2]
[327154250,1715861732495,114.85754921,9.844e-05,2]
[327154252,1715861755608,3885.14245079,9.892e-05,2]
[327154254,1715861823100,-627.99,9.394e-05,2]
[327154255,1715861971930,168.16,8.219e-05,2]
[327154257,1715862089603,-288.0,9.197e-05,2]
[327154258,1715862089625,-883.0724361,9.257e-05,2]
[327154259,1715862089648,-1213.86286968,9.258e-05,2]
[327154260,1715862089673,-488.66319788,9.259e-05,2]
[327154261,1715862089699,-1126.40149634,9.259e-05,2]
[327154262,1715862090172,-909.85850366,9.259e-05,2]
[327154263,1715862090194,-167.81288797,9.259e-05,2]
[327154264,1715862091150,964.19357353,9.256e-05,2]
[327154265,1715862091286,523.16611257,9.256e-05,2]
[327154266,1715862100413,204.7855615,9.259e-05,2]
[327154267,1715862107418,6601.8,0.00021975,90]
[327154268,1715862113191,155.0,9.259e-05,2]
[327154269,1715862115120,1075.18336077,8.219e-05,2]
[327154270,1715862115143,4000.0,8.219e-05,2]
[327154271,1715862115166,1595.57809061,8.219e-05,2]
[327154272,1715862213097,2404.42190939,8.219e-05,2]
[327154273,1715862213119,4000.0,8.219e-05,2]
[327154274,1715862213141,1595.57809061,8.219e-05,2]
[327154275,1715862226368,237.20973575,9.259e-05,2]
[327154278,1715862368389,266.22124095,9.259e-05,2]
[327154279,1715862371235,155.0,9.259e-05,2]
[327154280,1715862379508,1745.99093269,9.259e-05,2]
[327154281,1715862379531,1171.10161206,9.259e-05,2]
[327154283,1715862400929,540.68765903,9.259e-05,2]
[327154284,1715862425828,499.74209631,9.259e-05,2]
[327154298,1715862535085,178.86,9.248e-05,2]
[327154300,1715862545598,167.04,8.219e-05,2]
[327154313,1715862635553,-204.7855615,9.262e-05,2]
[327154314,1715862635563,-200.0,9.263e-05,2]
[327154315,1715862635572,-164.98,9.267e-05,2]
[327154316,1715862635583,-165.44,9.278e-05,2]
[327154317,1715862635593,-968.41,9.281e-05,2]
[327154318,1715862635610,-304.56,9.288e-05,2]
[327154319,1715862635620,-150.0,9.288e-05,2]
[327154320,1715862635630,-23900.0,9.289e-05,2]
[327154321,1715862635640,-250.0,9.297e-05,2]
[327154322,1715862635649,-627.99,9.299e-05,2]
[327154323,1715862635660,-200.0,9.3e-05,2]
[327154324,1715862635670,-250.0,9.306e-05,2]
[327154325,1715862635679,-508.34,9.308e-05,2]
[327154326,1715862635690,-1500.0,9.31e-05,2]
[327154327,1715862635699,-153.8,9.311e-05,2]
[327154328,1715862635710,-1533.51,9.313e-05,2]
[327154329,1715862635720,-289.59,9.316e-05,2]
[327154330,1715862635730,-732.42,9.33e-05,2]
[327154331,1715862635740,-2854.68,9.67e-05,2]
[327154332,1715862635750,-150.99,9.67e-05,2]
[327154333,1715862635760,-499.99,9.67e-05,2]
[327154334,1715862635770,-151.8,9.748e-05,2]
[327154335,1715862635779,-151.8,9.752e-05,2]
[327154336,1715862635789,-151.8,9.756e-05,2]
[327154337,1715862635798,-151.8,9.76e-05,2]
[327154338,1715862635808,-151.8,9.763e-05,2]
[327154339,1715862635817,-709.19,9.763e-05,2]
[327154340,1715862635828,-151.8,9.767e-05,2]
[327154341,1715862635837,-151.8,9.771e-05,2]
[327154342,1715862635846,-151.8,9.775e-05,2]
[327154343,1715862635862,-151.8,9.778e-05,2]
[327154344,1715862635871,-151.8,9.782e-05,2]
[327154345,1715862635881,-151.8,9.786e-05,2]
[327154347,1715862635891,-151.8,9.79e-05,2]
[327154349,1715862635900,-151.8,9.793e-05,2]
[327154351,1715862635910,-151.8,9.797e-05,2]
[327154353,1715862635919,-298.78407833,0.0001,2]
[327154355,1715862635930,-208.51903848,0.00010103,2]
[327154357,1715862635940,-170.62,0.00010104,2]
[327154359,1715862635950,-712.0,0.00010104,2]
[327154361,1715862635960,-210.0,0.00010217,2]
[327154363,1715862635970,-288.0,0.00010347,2]
[327154365,1715862635979,-302.75365927,0.00010513,7]
[327154367,1715862635989,-312.71181864,0.00010513,2]
[327154369,1715862635999,-150.0,0.00010808,2]
[327154371,1715862636008,-956.0332,0.00010867,2]
[327154373,1715862636018,-4241.2065,0.00010868,2]
[327154375,1715862636028,-5952.1729,0.00010899,2]
[327154377,1715862636039,-974.788,0.000109,2]
[327154379,1715862636049,-1564.1179518,0.00010907,2]
[327154381,1715862636063,-1000.0,0.00010921,2]
[327154383,1715862636073,-800.0,0.00010932,2]
[327154385,1715862636083,-150.0,0.00010935,2]
[327154387,1715862636094,-800.0,0.00010959,2]
[327154389,1715862636112,-150.0,0.00010959,2]
[327154391,1715862636122,-169.7463935,0.00010965,2]
[327154393,1715862636132,-197.37821516,0.00010966,2]
[327154395,1715862636142,-171.59830441,0.00010966,2]